bitfinex-derivatives/quotes_ETHF0:USTF0_20260310
["timestamp","ask_amount","ask_price","bid_price","bid_amount"]
[1773138209732,1.57742696,2060.1,2059.4,1.57272753]
[1773138211522,1.57742696,2060.1,2059.6,1.57272753]
[1773138212528,1.57742696,2060.1,2059.4,1.57272753]
[1773138212735,1.57742696,2059.7,2059.1,0.00377447]
[1773138212931,1.57742696,2060.2,2059.6,1.57272753]
[1773138215036,1.53653884,2060.4,2059.8,1.50767461]
[1773138215237,1.53653884,2060.4,2060.0,1.50767461]
[1773138215933,1.53653884,2060.4,2059.5,1.50767461]
[1773138216134,1.53653884,2060.4,2059.7,1.50767461]
[1773138220445,1.53653884,2060.5,2059.7,1.50767461]
[1773138222644,1.53653884,2060.5,2059.8,1.50767461]
[1773138225750,1.5420896,2060.6,2059.8,1.50767461]
[1773138229553,1.5420896,2060.6,2059.9,9.97217451]
[1773138230255,1.5420896,2060.6,2060.0,1.53517451]
[1773138235261,1.48871867,2060.9,2060.0,1.53517451]
[1773138236358,1.49270891,2060.9,2060.0,1.53517451]
[1773138236751,0.00399024,2060.9,2060.0,1.53517451]
[1773138237359,1.49270891,2060.9,2060.0,1.53517451]
[1773138237558,1.49270891,2060.9,2060.2,1.53517451]
[1773138239561,1.48871867,2061.3,2060.5,1.53517451]
[1773138239865,1.48871867,2061.3,2060.7,1.53517451]
[1773138240469,1.49462273,2061.3,2060.7,1.54126409]
[1773138247274,1.49462273,2061.3,2060.7,8.56308958]
[1773138247772,1.49462273,2061.3,2060.7,0.00608958]
[1773138247974,1.49462273,2061.3,2060.5,8.559]
[1773138248375,1.41235113,2061.1,2060.4,1.43205426]
[1773138248575,1.41235113,2061.1,2060.4,8.561]
[1773138248972,1.41235113,2061.1,2060.4,8.56682973]
[1773138249475,1.41235113,2061.1,2060.4,9.99888399]
[1773138249772,1.41235113,2061.1,2060.5,1.43205426]
[1773138251174,0.00590406,2061.3,2060.5,1.43205426]
[1773138251175,1.41235113,2061.2,2060.5,1.43205426]
[1773138254479,1.41235113,2061.2,2060.4,0.00582973]
[1773138255081,1.41235113,2061.2,2060.4,1.43788399]
[1773138255576,0.24257,2061.1,2060.4,0.00582973]
[1773138255782,0.2426,2060.9,2059.8,1.43205426]
[1773138255983,1.41235113,2060.8,2059.8,1.43205426]
[1773138256683,1.41235113,2060.8,2059.8,1.43567095]
[1773138263991,1.41235113,2060.6,2059.9,10.00805426]
[1773138265082,1.41235113,2060.6,2059.8,10.01267095]
[1773138265680,1.41235113,2060.6,2059.9,1.43205426]
[1773138266084,1.41235113,2060.9,2059.9,1.43205426]
[1773138270392,1.41235113,2060.9,2060.0,1.43205426]
[1773138271991,1.41235113,2060.7,2059.9,1.43205426]
[1773138273101,1.41235113,2060.7,2059.8,0.00361669]
[1773138273391,1.41235113,2060.2,2059.5,1.43205426]
[1773138274289,1.41235113,2060.2,2059.5,1.4379301]
[1773138274593,1.44094601,2060.9,2059.6,1.4814313]
[1773138274797,12.26717109,2061.0,2059.6,1.4814313]
[1773138274798,1.44094601,2060.7,2059.6,1.4814313]
[1773138278700,1.68356601,2060.7,2059.4,1.4814313]
[1773138279299,4.02736874,2061.0,2059.4,1.4814313]
[1773138279300,1.44094601,2060.5,2059.4,1.4814313]
[1773138279598,1.44094601,2060.1,2059.4,0.00495655]
[1773138279792,1.44094601,2060.1,2059.1,10.0714313]
[1773138280100,1.44094601,2060.1,2059.2,1.4814313]
[1773138280699,1.44094601,2060.4,2059.4,1.4814313]
[1773138282597,1.44094601,2060.4,2059.5,1.4814313]
[1773138283399,1.29349462,2060.9,2059.5,1.4814313]
[1773138283594,1.29349462,2060.9,2059.7,1.4814313]
[1773138283996,1.29349462,2060.9,2059.7,11.5505402]
[1773138284196,1.29349462,2060.9,2059.8,1.4814313]
[1773138284597,1.29349462,2060.9,2060.0,1.4814313]
[1773138284798,1.29272787,2061.2,2060.2,1.4814313]
[1773138285397,1.28944315,2061.0,2059.9,1.4814313]
[1773138287897,1.28944315,2061.0,2060.1,1.43559716]
[1773138288599,1.28944315,2061.0,2060.2,1.43559716]
[1773138289900,1.28944315,2061.0,2060.3,1.43559716]
[1773138291500,1.28944315,2061.0,2059.7,10.0691089]
[1773138291501,0.6656673,2060.8,2060.0,1.43559716]
[1773138291697,0.6656673,2060.6,2060.0,1.43559716]
[1773138291902,0.6656673,2060.6,2059.8,8.604]
[1773138292204,1.25979562,2060.2,2059.6,1.43559716]
[1773138298007,1.25979562,2060.2,2059.7,1.43559716]
[1773138298908,1.22849372,2060.7,2059.7,1.43559716]
[1773138303515,1.24774919,2060.8,2059.7,1.43559716]
[1773138308908,1.24774919,2060.8,2059.9,1.39738572]
[1773138310810,1.18533103,2061.2,2060.0,1.39738572]
[1773138311013,1.18533103,2061.2,2060.2,1.39738572]
[1773138312614,0.56336108,2060.3,2059.8,1.39738572]
[1773138312916,0.56336108,2060.3,2059.6,1.39738572]
[1773138314615,0.80182912,2060.9,2059.6,1.39738572]
[1773138314819,0.55922912,2061.1,2059.8,1.39738572]
[1773138315014,0.60404327,2060.9,2059.9,10.01338572]
[1773138315217,0.60404327,2060.7,2060.0,1.39738572]
[1773138315422,0.60404327,2060.7,2060.0,10.01338572]
[1773138316019,0.60175303,2060.5,2059.7,8.617]
[1773138316214,0.60175303,2060.5,2059.8,1.39738572]
[1773138316622,0.60175303,2060.5,2059.7,10.01538572]
[1773138316921,8.79281805,2060.9,2059.7,1.39738572]
[1773138316922,0.59956803,2060.3,2059.7,1.39738572]
[1773138317921,0.59956803,2060.3,2059.6,1.39738572]
[1773138318118,0.59956803,2060.3,2059.5,10.01738572]
[1773138319726,0.59956803,2060.3,2059.5,10.01838572]
[1773138320918,0.59956803,2060.3,2059.6,1.39738572]
[1773138322727,0.55622808,2060.1,2059.6,1.39738572]
[1773138323227,0.55622808,2060.1,2059.5,1.39738572]
[1773138329044,0.55622808,2060.1,2059.6,1.39738572]
[1773138331349,0.55622808,2060.1,2059.3,1.39738572]
[1773138331548,0.55622808,2060.1,2059.4,10.01338572]
[1773138332648,0.55622808,2060.1,2059.5,1.39738572]
[1773138336952,0.55622808,2060.1,2059.5,10.00838572]
[1773138337155,0.55622808,2060.1,2059.5,1.39738572]
[1773138337456,0.79462881,2060.2,2059.5,1.39738572]
[1773138337651,0.55194881,2060.1,2059.5,1.39738572]
[1773138342452,4.02397818,2060.5,2059.5,1.39738572]
[1773138342653,0.58528011,2060.5,2059.5,1.39738572]
[1773138350458,0.65690538,2060.1,2059.3,1.48710925]
[1773138350665,0.89962538,2059.8,2059.3,1.48710925]
[1773138350864,0.65690538,2059.7,2059.3,1.48710925]
[1773138351461,0.66250011,2059.8,2059.3,1.48710925]
[1773138352566,0.66250011,2059.8,2059.2,1.49148391]
[1773138352762,0.65748042,2059.6,2058.9,1.48710925]
[1773138353767,0.65748042,2059.6,2058.9,1.49333708]
[1773138355067,0.24274,2059.7,2058.9,1.49333708]
[1773138355364,1.72809392,2059.7,2058.9,1.49333708]
[1773138356767,1.72809392,2059.7,2059.0,8.596]
[1773138356967,1.72809392,2059.7,2059.1,1.48710925]
[1773138361571,1.72809392,2059.7,2059.1,10.07810925]
[1773138361770,1.72809392,2059.7,2059.2,1.48710925]
[1773138364572,0.00349608,2059.8,2059.2,1.48710925]
[1773138364573,1.68087059,2060.2,2059.2,1.48710925]
[1773138364779,1.68087059,2060.2,2059.4,1.47108484]
[1773138365571,1.68667303,2060.2,2059.4,1.47108484]
[1773138368073,0.00580244,2060.2,2059.4,1.47108484]
[1773138368770,1.44398303,2060.2,2059.4,1.47108484]
[1773138372780,1.44398303,2060.2,2059.5,1.47108484]
[1773138376281,0.00580244,2060.2,2059.5,1.47108484]
[1773138376481,1.44398303,2060.2,2059.5,1.47108484]
[1773138380184,1.43818059,2060.0,2059.3,1.47108484]
[1773138384087,1.68087059,2060.1,2059.3,1.47108484]
[1773138396506,1.43818059,2060.1,2059.3,1.47108484]
[1773138397898,1.68087059,2060.1,2059.3,1.47108484]
[1773138407214,1.46568842,2059.9,2059.3,1.47108484]
[1773138407715,1.46568842,2059.7,2059.0,9.94386567]
[1773138407910,1.46568842,2059.7,2059.1,1.42586567]
[1773138416820,1.46568842,2059.7,2059.2,1.40435764]
[1773138420426,0.24272,2059.8,2059.2,1.40435764]
[1773138421025,1.62884717,2059.8,2059.2,1.40435764]
[1773138421224,1.38612717,2060.0,2059.4,1.40435764]
[1773138425531,0.00580244,2060.2,2059.4,1.40435764]
[1773138425831,1.46401403,2060.1,2059.4,1.40435764]
[1773138428031,0.00580244,2060.2,2059.6,1.49917317]
[1773138428229,0.00580244,2060.2,2059.8,1.49917317]
[1773138428630,1.46401403,2060.3,2059.8,1.49917317]
[1773138429338,1.46401403,2060.5,2059.8,1.49917317]
[1773138429534,1.46943002,2060.5,2060.0,1.49917317]
[1773138429835,0.00541599,2060.5,2060.0,1.49917317]
[1773138432138,1.70663403,2060.7,2060.2,1.49917317]
[1773138433129,1.71055294,2060.7,2060.2,1.49917317]
[1773138438745,3.34987632,2060.6,2060.0,1.49917317]
[1773138441345,1.46401403,2060.6,2060.0,1.49917317]
[1773138446548,1.46401403,2060.3,2059.8,1.49917317]
[1773138447050,1.70665403,2060.5,2059.8,1.49917317]
[1773138450448,3.34987632,2060.4,2059.8,1.49917317]
[1773138450656,1.46401403,2060.3,2059.8,1.49917317]
[1773138451957,3.34987632,2060.4,2059.8,1.49917317]
[1773138455658,1.46880127,2060.3,2059.8,1.49917317]
[1773138456062,1.88586229,2060.4,2059.8,1.49917317]
[1773138456261,3.35466356,2060.4,2059.8,1.49917317]
[1773138460262,1.46880127,2060.3,2059.8,1.49917317]
[1773138460463,1.46880127,2060.3,2059.9,1.41452065]
[1773138461659,1.71144127,2060.5,2060.0,1.41452065]
[1773138461866,1.47272018,2060.7,2060.0,1.41452065]
[1773138464167,0.00391891,2060.7,2060.2,1.41452065]
[1773138464366,1.47272018,2060.7,2060.2,1.41452065]
[1773138465467,0.00391891,2060.7,2060.2,1.41452065]
[1773138466067,1.47272018,2060.7,2060.2,1.41452065]
[1773138470170,1.39840719,2060.6,2060.2,1.41452065]
[1773138471270,1.4023261,2060.7,2060.2,1.41452065]
[1773138472373,1.39840719,2060.2,2059.8,1.42785786]
[1773138473172,1.39840719,2060.4,2059.8,1.42785786]
[1773138473664,1.64105719,2060.4,2059.8,1.42785786]
[1773138475174,1.64105719,2060.4,2059.8,8.485]
[1773138475473,1.64105719,2060.4,2059.8,9.91285786]
[1773138477973,1.64105719,2060.4,2059.9,1.42785786]
[1773138482275,1.39840719,2060.5,2059.9,1.42785786]
[1773138482479,1.39840719,2060.6,2059.9,1.42785786]
[1773138483880,0.00391891,2060.7,2059.9,1.42785786]
[1773138487185,1.46409577,2060.7,2059.9,1.42785786]
[1773138489383,0.00391891,2060.7,2059.9,1.42785786]
[1773138489584,0.00391891,2060.7,2060.2,1.36956374]
[1773138489881,0.00391891,2060.7,2059.8,10.61930253]
[1773138489882,0.00391891,2060.7,2060.4,1.36956374]
[1773138490082,0.00391891,2060.7,2060.4,1.37534304]
[1773138490682,1.46017686,2060.9,2060.4,1.37534304]
[1773138491585,1.46538411,2060.9,2060.4,1.37534304]
[1773138492378,0.24255,2061.3,2060.4,1.37534304]
[1773138492584,1.70272686,2061.3,2060.4,1.37534304]
[1773138493381,1.70655735,2061.3,2060.6,1.36956374]
[1773138493581,1.70655735,2061.3,2060.7,1.36956374]
[1773138495391,1.46400735,2061.3,2060.7,1.36956374]
[1773138495690,0.00383049,2061.3,2060.7,1.36956374]
[1773138496683,1.46400735,2061.3,2060.7,1.36956374]
[1773138497190,0.00383049,2061.3,2060.7,1.36956374]
[1773138499291,1.46017686,2061.4,2060.7,1.36956374]
[1773138500295,1.46512266,2061.4,2060.7,1.36956374]
[1773138502794,1.46512266,2061.4,2060.9,1.36956374]
[1773138505499,1.46512266,2061.4,2060.5,1.36956374]
[1773138505799,1.46017686,2061.2,2060.7,1.36956374]
[1773138506501,1.46017686,2061.2,2060.7,9.87956374]
[1773138508501,1.46017686,2061.2,2060.8,1.36956374]
[1773138508900,1.46017686,2061.2,2060.7,1.36956374]
[1773138510401,1.46017686,2061.2,2060.5,1.36956374]
[1773138520018,0.0049458,2061.4,2060.5,1.36956374]
[1773138520210,0.0049458,2061.4,2060.8,1.49453672]
[1773138520510,0.24251,2061.7,2060.9,8.509]
[1773138520714,1.74252098,2061.7,2061.0,1.49453672]
[1773138521416,0.00419395,2061.7,2061.0,1.49453672]
[1773138523313,1.50001098,2061.9,2061.2,1.49453672]
[1773138523514,1.50001098,2061.9,2061.4,1.49453672]
[1773138524216,1.50484796,2061.9,2061.4,1.49453672]
[1773138526714,0.00483698,2061.9,2061.4,1.49453672]
[1773138526909,1.50484796,2061.9,2061.4,1.49453672]
[1773138527511,0.00483698,2061.9,2061.4,1.49453672]
[1773138528519,1.45819581,2061.9,2061.4,1.49453672]
[1773138528817,1.45819581,2061.9,2061.6,1.42934432]
[1773138530324,0.00483698,2061.9,2061.6,1.42934432]
[1773138532016,1.45819581,2061.9,2061.5,1.42934432]
[1773138534216,1.45819581,2061.9,2061.5,9.94034432]
[1773138534521,1.45819581,2061.9,2061.6,1.42934432]
[1773138536523,1.45819581,2061.9,2061.6,1.40865622]
[1773138536724,1.45819581,2061.9,2061.5,9.94134432]
[1773138537022,1.45819581,2061.9,2061.3,1.42934432]
[1773138537225,1.45819581,2061.9,2061.4,8.512]
[1773138537418,1.45819581,2061.9,2061.4,9.94134432]
[1773138537716,1.45819581,2061.9,2061.4,8.512]
[1773138537922,1.45819581,2061.9,2061.5,1.42934432]
[1773138543320,0.00483698,2061.9,2061.5,1.42934432]
[1773138543519,1.45819581,2061.9,2061.5,1.42934432]
[1773138543923,1.45819581,2061.9,2061.5,9.94434432]
[1773138545623,1.45819581,2061.9,2061.6,1.43400736]
[1773138545824,0.00483698,2061.9,2061.6,1.43400736]
[1773138546720,1.42907241,2062.1,2061.6,1.43400736]
[1773138547624,1.43308575,2062.1,2061.6,1.43400736]
[1773138548221,1.43308575,2062.1,2061.7,1.43400736]
[1773138548420,1.43308575,2062.1,2061.4,1.88160867]
[1773138548421,1.42907241,2061.8,2061.4,9.95300736]
[1773138549622,3.31068108,2061.9,2061.5,1.43400736]
[1773138549830,1.42907241,2061.9,2061.5,1.43400736]
[1773138551329,1.67154241,2062.0,2061.5,1.43400736]
[1773138552129,1.67154241,2062.0,2061.2,1.43400736]
[1773138552430,1.42907241,2061.8,2061.4,1.43400736]
[1773138554627,0.24247,2062.0,2061.0,1.43400736]
[1773138554628,1.88160867,2061.7,2061.0,1.43400736]
[1773138554831,1.42907241,2061.6,2061.2,1.43400736]
[1773138555032,1.42907241,2061.6,2061.3,1.43400736]
[1773138555228,1.88160867,2061.9,2061.3,1.43400736]
[1773138555429,1.42907241,2061.8,2061.3,1.43400736]
[1773138564645,1.42907241,2061.6,2061.0,1.43400736]
[1773138564847,1.42907241,2061.6,2061.2,1.43400736]
[1773138565146,1.88160867,2061.8,2061.2,1.43400736]
[1773138565348,1.42907241,2061.5,2061.1,1.43400736]
[1773138566848,1.42907241,2061.5,2061.2,1.43400736]
[1773138567051,1.88160867,2061.4,2061.1,9.96900736]
[1773138567347,1.88160867,2061.4,2060.9,9.97000736]
[1773138567348,1.42907241,2061.3,2060.9,9.97000736]
[1773138568148,1.42907241,2061.3,2060.9,1.43400736]
[1773138568450,1.42907241,2061.3,2060.9,9.97100736]
[1773138569348,3.31068108,2061.2,2060.8,9.97200736]
[1773138569549,1.42907241,2061.2,2060.9,1.43400736]
[1773138569750,1.42907241,2061.7,2061.0,1.43400736]
[1773138569951,6.06903465,2061.6,2061.0,1.43400736]
[1773138570148,1.42907241,2061.7,2061.0,1.43400736]
[1773138570348,1.42907241,2061.5,2061.0,1.43400736]
[1773138573555,1.39765039,2061.3,2060.9,1.46447211]
[1773138573857,3.27925906,2061.2,2060.8,1.46447211]
[1773138574052,1.39765039,2061.2,2060.8,1.46447211]
[1773138575352,0.24254,2061.4,2060.8,1.46447211]
[1773138575552,3.27925906,2061.6,2060.8,1.46447211]
[1773138575752,7.45887151,2061.5,2060.8,1.46447211]
[1773138575954,1.39765039,2061.5,2060.8,1.46447211]
[1773138578253,1.39765039,2061.7,2060.9,1.46447211]
[1773138578453,7.45993699,2061.6,2060.9,1.46447211]
[1773138578758,1.39765039,2061.6,2060.9,1.46447211]
[1773138579454,1.39765039,2061.5,2060.9,1.46447211]
[1773138579858,3.27925906,2061.4,2060.9,1.46447211]
[1773138580058,1.39765039,2061.4,2060.9,1.46447211]
[1773138584262,4.04254446,2061.8,2060.9,1.46447211]
[1773138584468,1.40166373,2062.1,2061.7,1.46447211]
[1773138584766,1.40166373,2062.1,2060.7,18.6121089]
[1773138584767,1.39765039,2061.8,2061.3,8.549]
[1773138584962,1.39765039,2061.6,2060.7,1.46447211]
[1773138585166,1.39765039,2061.4,2060.9,1.46447211]
[1773138585762,1.40674981,2061.6,2060.9,1.46447211]
[1773138585964,1.40674981,2061.6,2061.0,1.42288517]
[1773138586161,1.40674981,2061.8,2060.9,1.42288517]
[1773138586572,1.40674981,2061.6,2060.9,1.42288517]
[1773138591081,1.40674981,2061.4,2060.9,1.42288517]
[1773138591281,1.40674981,2061.0,2060.6,1.42288517]
[1773138594483,1.40674981,2061.2,2060.8,1.42288517]
[1773138594684,1.40674981,2061.2,2060.5,10.43560867]
[1773138594880,1.40674981,2061.2,2060.6,1.42288517]
[1773138600177,1.40674981,2060.9,2060.2,1.42288517]
[1773138600582,1.40674981,2061.2,2060.2,1.66556517]
[1773138601386,1.40674981,2061.2,2060.2,1.66900018]
[1773138601982,1.40674981,2061.5,2060.5,1.42288517]
[1773138602185,1.40674981,2061.5,2060.7,1.42288517]
[1773138602379,1.40674981,2061.5,2060.7,1.88310412]
[1773138602583,1.40674981,2062.0,2060.8,1.42288517]
[1773138602784,1.40674981,2061.8,2060.8,1.42288517]
[1773138603286,1.40674981,2062.0,2061.1,1.42288517]
[1773138603486,1.40674981,2062.0,2061.2,9.99688517]
[1773138603687,1.40674981,2062.0,2061.3,1.55261241]
[1773138604282,1.40674981,2062.0,2061.2,8.574]
[1773138604483,1.40674981,2062.0,2060.4,1.55261241]
[1773138604484,0.24254,2061.4,2060.4,1.55261241]
[1773138604690,1.54805734,2060.9,2060.2,1.55604742]
[1773138604883,1.54805734,2060.9,2060.2,0.00343501]
[1773138605582,1.54805734,2060.9,2060.3,1.55261241]
[1773138606190,1.54805734,2060.9,2060.2,0.00343501]
[1773138606383,1.54805734,2060.9,2060.2,1.55604742]
[1773138608191,6.356,2061.5,2060.2,1.55604742]
[1773138608396,1.54805734,2061.3,2060.4,1.55261241]
[1773138608597,1.54805734,2061.3,2060.6,1.55261241]
[1773138614496,1.54805734,2061.6,2060.6,1.55261241]
[1773138614898,1.54805734,2061.6,2060.7,1.55261241]
[1773138619198,0.00401334,2062.1,2060.7,1.55261241]
[1773138619395,1.54805734,2061.9,2060.7,1.55261241]
[1773138619600,1.54805734,2061.9,2060.9,1.55261241]
[1773138620200,2.76188584,2062.6,2061.2,11.93807727]
[1773138620400,0.97405735,2063.0,2062.2,0.00389727]
[1773138620595,6.20218,2063.7,2062.3,0.5777748]
[1773138620596,1.54805734,2062.7,2062.3,0.5777748]
[1773138620799,1.54805734,2063.4,2062.3,0.5777748]
[1773138621297,1.55240842,2063.4,2062.3,0.58245662]
[1773138621806,1.54805734,2063.2,2062.3,0.58245662]
[1773138622399,1.54805734,2063.0,2062.3,0.58245662]
[1773138623404,11.87145137,2063.0,2062.3,0.58245662]
[1773138624808,1.54805734,2062.9,2062.3,0.58245662]
[1773138626704,1.54805734,2063.1,2062.3,0.58245662]
[1773138626907,1.54805734,2063.2,2062.3,0.58245662]
[1773138627510,9.51976503,2063.1,2062.3,0.58245662]
[1773138627701,1.55240842,2063.4,2062.3,0.58245662]
[1773138628503,1.55240842,2063.4,2062.5,1.37111425]
[1773138628713,1.67176835,2063.2,2062.3,1.37579607]
[1773138629613,0.24234,2063.1,2062.3,1.37579607]
[1773138629806,1.75120822,2063.0,2062.3,1.37579607]
[1773138634409,1.75120822,2063.0,2061.5,20.21025095]
[1773138634410,2.14962908,2062.8,2061.7,8.595]
[1773138634616,2.14962908,2062.8,2061.8,1.07877318]
[1773138635009,2.14962908,2063.3,2061.8,1.07877318]
[1773138635222,5.95778,2064.5,2061.7,8.595]
[1773138635223,2.14962908,2063.8,2062.8,1.08479107]
[1773138635513,2.14962908,2063.8,2063.0,1.08479107]
[1773138635712,2.14962908,2063.8,2062.8,1.07634788]
[1773138635910,2.14962908,2063.8,2062.7,8.596]
[1773138636111,2.14962908,2063.8,2062.7,9.67347477]
[1773138636414,2.15392315,2063.8,2062.8,1.07747477]
[1773138639213,0.00429407,2063.8,2062.8,1.07747477]
[1773138639410,2.14962908,2064.8,2063.6,1.23205923]
[1773138639615,2.14962908,2064.8,2063.8,0.98112126]
[1773138640718,2.15506453,2064.8,2063.8,0.98112126]
[1773138641520,2.15506453,2064.8,2063.6,1.01896044]
[1773138645510,2.15506453,2064.8,2063.7,1.16313192]
[1773138653826,2.15506453,2064.8,2063.9,1.18337299]
[1773138654321,2.15506453,2064.8,2063.6,40.8]
[1773138654521,2.15506453,2064.8,2063.7,1.18404762]
[1773138655823,2.15506453,2064.8,2063.7,1.42630762]
[1773138656025,2.15506453,2064.8,2063.7,1.18404762]
[1773138658023,2.39720453,2064.8,2063.8,8.692]
[1773138658224,2.39720453,2064.8,2063.8,9.79727297]
[1773138658925,2.39720453,2064.8,2063.9,1.09703526]
[1773138659523,0.00543545,2064.8,2063.9,1.09703526]
[1773138659824,2.09486403,2065.4,2064.7,1.99885561]
[1773138660024,2.07886403,2066.1,2064.9,1.8172889]
[1773138660226,2.32088403,2065.8,2064.5,1.81805703]
[1773138660522,2.07886403,2065.3,2064.5,1.81805703]
[1773138660730,2.08243754,2065.3,2064.5,0.00592545]
[1773138661124,2.08243754,2065.3,2064.5,2.02720747]
[1773138662830,2.08243754,2065.3,2064.5,0.00592545]
[1773138663626,2.17580912,2065.1,2064.1,2.01123561]
[1773138664717,2.17580912,2065.1,2064.1,2.01562393]
[1773138667231,2.17580912,2065.1,2064.1,0.00438832]
[1773138668127,2.17580912,2065.1,2064.1,2.05367886]
[1773138670730,2.17580912,2064.9,2064.1,0.00438832]
[1773138671029,2.17580912,2064.9,2064.1,2.02852044]
[1773138672735,2.17580912,2064.7,2063.8,9.73741777]
[1773138672937,9.96043722,2065.3,2063.6,0.5]
[1773138672938,0.00357351,2065.3,2064.1,5.95871]
[1773138673231,2.17938263,2065.3,2064.6,2.15343949]
[1773138673432,2.17938263,2065.3,2064.7,2.15343949]
[1773138673620,2.17938263,2065.3,2064.5,7.59943958]
[1773138673828,2.17938263,2065.3,2064.5,0.00608284]
[1773138674734,2.17938263,2065.3,2064.5,2.14486491]
[1773138677137,2.17938263,2065.3,2064.5,0.00608284]
[1773138677330,2.17938263,2065.3,2063.9,9.01024]
[1773138677331,2.17580912,2065.2,2064.0,7.59943958]
[1773138677531,2.17580912,2065.2,2064.0,2.16316246]
[1773138678334,2.17580912,2065.2,2064.0,2.16859898]
[1773138679133,2.17580912,2065.2,2064.0,9.76803856]
[1773138679340,2.17580912,2065.2,2064.1,2.16316246]
[1773138686245,2.17580912,2065.0,2064.0,7.6048761]
[1773138686835,2.17580912,2065.0,2064.0,2.16074191]
[1773138689252,2.17580912,2065.0,2064.0,2.16859898]
[1773138689452,2.17580912,2064.9,2064.0,2.16859898]
[1773138690453,2.17580912,2064.6,2063.7,7.59943958]
[1773138690655,2.17580912,2064.6,2063.7,2.16316246]
[1773138691159,2.17580912,2064.6,2063.6,2.66316246]
[1773138691554,2.17580912,2064.6,2063.6,2.66910096]
[1773138692156,2.17580912,2064.4,2063.6,2.66910096]
[1773138694762,2.17580912,2064.4,2063.6,0.5059385]
[1773138695060,4.76854264,2064.2,2063.3,2.10150785]
[1773138695355,1.95364667,2063.5,2062.8,2.10150785]
[1773138696061,1.95782896,2063.5,2062.8,2.10544603]
[1773138702267,1.95782896,2063.5,2062.6,10.97750785]
[1773138703066,5.95876,2064.1,2062.2,0.83784793]
[1773138703067,1.95364667,2064.2,2063.0,2.10150785]
[1773138703360,1.95364667,2063.9,2062.7,2.10150785]
[1773138703567,2.19588667,2063.9,2062.7,2.10150785]
[1773138703958,2.20016117,2063.9,2062.8,2.10150785]
[1773138704367,1.95792117,2063.9,2062.8,2.10150785]
[1773138706066,1.95792117,2063.9,2063.0,1.9872108]
[1773138707572,1.95792117,2063.9,2063.2,1.9872108]
[1773138710472,1.99880047,2064.7,2063.6,1.9872108]
[1773138710872,1.99880047,2064.7,2063.8,1.9872108]
[1773138711377,2.00367379,2064.7,2063.8,1.9872108]
[1773138715670,2.00367379,2064.7,2063.7,8.922]
[1773138715876,1.99880047,2064.6,2063.6,1.9872108]
[1773138716072,8.34580047,2064.6,2063.6,1.9872108]
[1773138716274,1.99880047,2064.5,2063.4,1.9872108]
[1773138716578,1.99880047,2064.3,2063.4,1.9872108]
[1773138717672,1.99880047,2064.3,2063.3,8.93]
[1773138717873,1.99880047,2064.3,2063.2,1.9872108]
[1773138720384,1.99880047,2064.1,2063.0,1.9872108]
[1773138720580,1.99880047,2063.7,2062.8,1.9872108]
[1773138721574,1.99880047,2064.0,2062.8,1.9872108]
[1773138721970,1.99880047,2064.0,2062.9,1.9872108]
[1773138725080,6.347,2064.0,2062.9,1.9872108]
[1773138725285,2.03175934,2063.9,2062.9,1.9872108]
[1773138726684,2.27400934,2063.9,2062.7,1.98324439]
[1773138727280,2.03175934,2063.7,2062.7,1.98324439]
[1773138729383,2.03175934,2063.5,2062.7,0.00409468]
[1773138730188,2.03175934,2063.3,2062.7,0.00409468]
[1773138730889,2.03175934,2063.1,2062.2,10.91714971]
[1773138731187,2.03175934,2063.1,2062.3,1.97914971]
[1773138731783,2.03626445,2063.1,2062.3,1.9839403]
[1773138732079,2.03175934,2062.9,2062.3,0.00479059]
[1773138732483,2.03175934,2062.9,2062.3,1.9839403]
[1773138733182,2.03175934,2062.9,2062.3,0.00479059]
[1773138735689,2.03175934,2062.9,2062.3,1.9839403]
[1773138738592,2.03626445,2063.1,2062.3,1.9839403]
[1773138739094,0.00450511,2063.1,2062.3,2.2263603]
[1773138740094,2.03175934,2063.6,2062.3,2.2263603]
[1773138740291,2.03175934,2063.6,2062.3,11.1503603]
[1773138740491,2.03175934,2063.6,2062.4,1.93982774]
[1773138740995,2.03653026,2063.6,2062.4,1.93982774]
[1773138743794,2.03175934,2063.4,2062.4,1.93982774]
[1773138745897,2.03175934,2063.0,2062.3,0.00479059]
[1773138746595,2.03175934,2063.0,2062.3,1.86403072]
[1773138748894,2.03175934,2062.9,2062.3,1.86403072]
[1773138751302,2.03175934,2062.9,2062.3,0.00479059]
[1773138751605,2.03175934,2062.9,2062.3,1.81537328]
[1773138758500,1.91719105,2063.4,2062.3,1.81537328]
[1773138758701,1.91719105,2063.2,2062.3,1.81537328]
[1773138764809,1.91719105,2063.2,2062.4,1.68206386]
[1773138765309,2.15952105,2063.2,2062.4,1.68206386]
[1773138765505,2.15952105,2063.2,2062.3,1.67840926]
[1773138768511,1.80502661,2063.1,2062.4,1.6295192]
[1773138773114,8.15602661,2063.3,2062.5,1.62492089]
[1773138773417,1.80502661,2063.2,2062.5,1.62492089]
[1773138774309,1.80502661,2063.5,2062.5,1.62492089]
[1773138774515,1.80502661,2063.3,2062.5,1.62492089]
[1773138775906,1.80502661,2063.3,2062.6,1.60003606]
[1773138777216,1.80502661,2063.5,2062.6,1.60003606]
[1773138777416,1.80502661,2063.5,2062.7,1.56331714]
[1773138779019,1.80502661,2063.5,2062.6,7.59943958]
[1773138779220,1.80502661,2063.5,2062.7,1.54558653]
[1773138781121,6.35477092,2063.6,2062.4,8.875]
[1773138781125,1.80502661,2063.3,2062.5,7.59943958]
[1773138781321,1.80502661,2063.3,2062.4,1.52889269]
[1773138781620,1.80502661,2063.3,2062.5,1.52151476]
[1773138783219,1.80502661,2063.3,2062.3,7.60423017]
[1773138783220,1.80502661,2063.3,2062.4,1.49839784]
[1773138784524,1.66947985,2063.2,2062.4,1.49839784]
[1773138785120,1.66947985,2063.2,2062.5,1.47973158]
[1773138785923,1.66947985,2063.2,2062.4,1.47251314]
[1773138800445,1.66947985,2063.1,2062.4,1.47251314]
[1773138805249,1.66947985,2063.1,2062.8,1.32183596]
[1773138805651,1.66947985,2063.3,2062.8,1.32183596]
[1773138806349,1.66947985,2063.5,2063.0,1.31517654]
[1773138807051,1.66947985,2063.5,2062.9,9.29031918]
[1773138807250,1.66947985,2063.5,2063.0,1.6908796]
[1773138808051,1.67383368,2063.5,2063.0,1.6908796]
[1773138808551,1.67383368,2063.5,2063.1,1.6908796]
[1773138811156,1.67383368,2063.5,2062.9,1.6908796]
[1773138812557,6.35,2063.8,2063.1,1.6908796]
[1773138812558,1.66947985,2063.8,2063.1,1.6908796]
[1773138812855,1.66947985,2063.7,2063.1,1.6908796]
[1773138813553,1.67563929,2063.7,2063.1,1.6908796]
[1773138816657,1.62383947,2063.6,2063.1,1.6908796]
[1773138819859,1.62383947,2063.6,2062.8,1.6553601]
[1773138822258,1.62383947,2063.4,2062.5,7.59943958]
[1773138822471,3.50344368,2062.8,2062.5,0.86097709]
[1773138822752,1.64578046,2062.7,2062.3,0.00479059]
[1773138822955,1.64578046,2063.5,2062.7,0.1354047]
[1773138823156,1.64863713,2062.9,2062.3,0.13448196]
[1773138824359,1.64832469,2063.2,2062.6,2.13669648]
[1773138824762,1.64832469,2063.2,2062.7,0.25206922]
[1773138825959,1.64832469,2063.2,2062.6,0.25790987]